Cogmind - Beta 16 @@@ ROGUE MODE // 2025.12.30 @ 15:54:31 Player: telemetry Result: Destroyed by 59-585(R) with Subdweller Beam Cannon Performance ------------- Evolutions (0) 0 Regions Visited (2) 400 Robots Destroyed (27) 135 Value Destroyed (505) 505 Prototype IDs (2) 40 Alien Tech Used (0) 0 Bonus (0) 0 TOTAL SCORE: 1080 Bonus ------- None Cogmind --------- Core Integrity 0/250 Matter 117/300 Energy 200/200 System Corruption 0% Temperature Hot (255) Movement Treading (240) Ox1 Location -10/Subcaves Parts ------- > --- POWER (1) -------- Subdweller Power Source > --- PROPULSION (2) --- Light Treads > --- UTILITY (2) ------ Medium Storage Unit Medium Armor Plating > --- WEAPON (2) ------- Assault Rifle Assault Rifle > --- INVENTORY (10) --- Light Ion Engine Light Treads High-capacity Matter Pod (0) Sensor Array Medium Armor Plating Authchip [Processor] Hammer Peak State ------------ > --- POWER ------------ Subdweller Power Source > --- PROPULSION ------- Light Treads Light Treads > --- UTILITY ---------- Medium Storage Unit Signal Interpreter > --- WEAPON ----------- Assault Rifle Mini Grenade Launcher > --- INVENTORY -------- Light Ion Engine Light Treads High-capacity Matter Pod Sensor Array Medium Armor Plating Medium Armor Plating Authchip [Processor] Assault Rifle Assault Rifle Hammer [Rating: 10] Favorites ----------- Power Ion Engine Engine Ion Engine Propulsion Light Treads Treads Light Treads Utility Medium Storage Unit Device Terrain Scanner Storage Medium Storage Unit Processor Signal Interpreter Protection Light Armor Plating Weapon Assault Rifle Ballistic Gun Assault Rifle Launcher Mini Grenade Launcher Impact Weapon Hammer Build | -11 -10 -10 ------- Run | Yrd Mat Sub Slots Evolved . | . . . Power . | . . . Propulsion . | . . . Utility . | . . . Weapon . | . . . Parts Attached 18 | 5 10 3 Power 3 | 1 1 1 Engine 3 | 1 1 1 Core . | . . . Reactor . | . . . Propulsion 2 | 1 1 . Treads 2 | 1 1 . Leg . | . . . Wheel . | . . . Hover . | . . . Flight . | . . . Utility 7 | 1 5 1 Device 1 | . 1 . Storage 2 | 1 1 . Processor 1 | . 1 . Hackware . | . . . Protection 3 | . 2 1 Artifact . | . . . Weapon 6 | 2 3 1 Energy Gun . | . . . Energy Cannon . | . . . Ballistic Gun 3 | 2 1 . Ballistic Cannon . | . . . Launcher 2 | . 1 1 Special Weapon . | . . . Impact Weapon 1 | . 1 . Slashing Weapon . | . . . Piercing Weapon . | . . . Special Melee Weapon . | . . . Unidentified Prototypes . | . . . Parts Lost 3 | . . 3 Power . | . . . Propulsion 1 | . . 1 Utility . | . . . Weapon 2 | . . 2 Highest Loss Streak 3 | . . 3 To Critical Strikes . | . . . Average Backups 8 | 2 9 9 Power . | . 1 1 Propulsion 1 | 1 1 1 Utility 4 | . 4 4 Weapon 2 | . 2 2 Tool/Special . | . . . Unused Backups 14 | . 8 6 Power 1 | . . 1 Propulsion 2 | . 1 1 Utility 7 | . 3 4 Weapon 4 | . 4 . Tool/Special . | . . . Average Slot Usage (%) 97 | . 97 99 Engine 14 | . 14 14 Treads 26 | . 26 28 Storage 14 | . 14 14 Processor 6 | . 4 14 Protection 7 | . 8 . Ballistic Gun 24 | . 24 24 Impact Weapon 2 | . 3 . Peak Build Rating 10 | 5 8 10 Average Rating 7 | 4 7 8 On Entrance 4 | . 5 8 Avg Prop Armor Cover (%) . | . . . Naked Turns . | . . . Heaviest Build 22 | 14 22 19 Greatest Support 40 | 20 40 40 Greatest Overweight (x) . | . . . Average Overweight (x) . | . . . Largest Inventory Capacity 10 | 8 10 10 Average Capacity 9 | 6 9 10 Most Carried 10 | 4 10 10 Average Carried 9 | 2 9 9 Final Capacity 10 | 8 10 10 Final Carried 10 | 4 10 7 Class Distribution -------------------- 100% | Mutant Dominant Class ---------------- Mutant | -10/Materials Mutant | -10/Subcaves Resources | -11 -10 -10 ----------- Run | Yrd Mat Sub Matter Collected 771 | 180 461 130 Remotely . | . . . Salvage Created 612 | . 522 90 Parts 50 | . 46 4 Haulers Intercepted 1 | . 1 . Recyclers Shooed 1 | . 1 . Parts Field Recycled . | . . . Retrieved Matter . | . . . Parts Self-Destructed 9 | . . 9 Prevented . | . . . Parts Restored . | . . . Kills | -11 -10 -10 ------- Run | Yrd Mat Sub Combat Hostiles Destroyed 15 | . 12 3 Guns 13 | . 10 3 AOE 2 | . 2 . Classes Destroyed 8 | . 7 1 Worker 2 | . 2 . Builder 2 | . 2 . Hauler 1 | . 1 . Operator 2 | . 2 . Turret 2 | . . 2 Watcher 3 | . 3 . Swarmer 8 | . 5 3 Grunt 7 | . 7 . Best Kill Streak 5 | . 5 3 Combat Bots Only 3 | . 3 3 Max Kills in Single Turn 4 | . 4 1 Gunslinging . | . . . Exploded 2 | . 2 . Melee . | . . . Uniques/NPCs Destroyed . | . . . Combat | -11 -10 -10 -------- Run | Yrd Mat Sub Hostile Shots Fired 109 | . 53 56 Missed 38 | . 17 21 Hits 71 | . 36 35 Projectile 71 | . 36 35 Critical Strikes 1 | . . 1 Damage Taken 1003 | . 384 619 Core 266 | . 88 178 Absorbed by Shields . | . . . Regen/Repaired (Parts) 135 | . 135 . Core Remaining (%) 100 | 100 . . Volleys Fired 85 | . 57 28 Largest 2 | . 2 2 Hottest 50 | . 40 50 Shots Fired 155 | . 103 52 Gun 153 | . 102 51 Cannon . | . . . Launcher 2 | . 1 1 Special . | . . . Kinetic 153 | . 102 51 Thermal . | . . . Explosive 2 | . 1 1 Electromagnetic . | . . . Robot Hit Streak 9 | . 8 9 Robot Miss Streak 4 | . 4 2 Penetration Max . | . . . Secondary Targets 1 | . 1 . Max Gunslinging Chain 1 | . 1 . Shots Hit Robots 93 | . 58 35 Core Hits 46 | . 36 10 Critical Kills . | . . . Critical Parts Destroyed . | . . . Critical Strikes . | . . . Melee Attacks 4 | . 4 . Impact 4 | . 4 . Slashing . | . . . Piercing . | . . . Sneak Attacks 1 | . 1 . Combat Hostiles . | . . . Follow-up Attacks . | . . . Damage Inflicted 1458 | . 1004 454 Guns 1242 | . 788 454 Cannons . | . . . Explosions 157 | . 157 . Melee 59 | . 59 . Ramming . | . . . Kinetic 1242 | . 788 454 Thermal . | . . . Explosive 157 | . 157 . Electromagnetic . | . . . Impact 59 | . 59 . Slashing . | . . . Piercing . | . . . Highest Corruption . | . . . Average Corruption . | . . . Corruption Purged . | . . . Corruption Blocked . | . . . Overload Shots . | . . . Overflow Damage 19 | . 19 . Projectiles . | . . . Explosions . | . . . Melee 19 | . 19 . Knockbacks . | . . . Impact . | . . . Kinetic . | . . . Secondary . | . . . Self-Inflicted Damage . | . . . Shots . | . . . Rammed . | . . . Targets Rammed . | . . . Kicked . | . . . Crushed . | . . . Highest Temperature 261 | . 21 261 Average Temperature 28 | . 7 249 Received Heat Transfer 691 | . 159 532 Siege Activations . | . . . Martial Activations . | . . . Shielding Activations . | . . . Robots Disrupted . | . . . Combat Hostiles . | . . . Robots Corrupted . | . . . Combat Hostiles . | . . . Parts Fried 2 | . 2 . Impact Corruptions 1 | . 1 . Robots Melted . | . . . Combat Hostiles . | . . . Parts Melted . | . . . Heat Transferred . | . . . Parts Sabotaged . | . . . Parts Stolen . | . . . Parts Stripped . | . . . Power Chain Reactions . | . . . Alert | -11 -10 -10 ------- Run | Yrd Mat Sub Maximum Alert Level . | . . . Low Security (%) 100 | 100 100 . Level 1 . | . . . Level 2 . | . . . Level 3 . | . . . Level 4 . | . . . Level 5 . | . . . High Security . | . . . Max Security . | . . . Peak Influence 108 | . 108 . Initial . | . . . Average 44 | . 46 . Influence Increases 595 | . 420 175 Destroy 0b10 Robot/C 340 | . 240 100 Destroy 0b10 Robot/NC 50 | . 50 . Destroy Leader 68 | . 68 . Successful Hack 12 | . 12 . Disable Machine 30 | . 30 . Destroy Structure 5 | . 5 . Lose Combat Pursuer 90 | . 15 75 Influence Decreases 540 | . 396 144 Entered New Map 12 | . . 12 Time Decay 498 | . 396 102 Lost Part 30 | . . 30 Squads Dispatched 4 | . 4 . Investigation 2 | . 2 . Extermination . | . . . Reinforcement 2 | . 2 . Assault . | . . . Garrison . | . . . Intercept . | . . . Searches Triggered . | . . . Construction Impeded . | . . . Haulers Reinforced . | . . . Active Scanning Responses . | . . . Cargo Convoy Interrupts . | . . . Stealth | -11 -10 -10 --------- Run | Yrd Mat Sub Distress Signals 3 | . 3 . Communications Jammed . | . . . Distress Signals . | . . . Times Spotted 31 | . 24 7 Peak Tracking Total 5 | . 5 4 Tactical Retreats 5 | . 1 4 Traps | -11 -10 -10 ------- Run | Yrd Mat Sub Traps Triggered 1 | . 1 . Indirectly . | . . . Trap Hack Attempts . | . . . Triggered . | . . . Disarmed . | . . . Reprogrammed . | . . . Reused . | . . . Traps Extracted . | . . . Installed . | . . . Triggered . | . . . Machines | -11 -10 -10 ---------- Run | Yrd Mat Sub Machines Disabled 4 | . 2 2 Max in Single Turn 1 | . 1 1 Machines Repaired . | . . . Machines Dismantled . | . . . Machines Sabotaged . | . . . Overloaded Fab Kills . | . . . Hacking | -11 -10 -10 --------- Run | Yrd Mat Sub Machines Accessed 8 | . 8 . Terminals 5 | . 5 . Fabricators . | . . . Repair Stations 1 | . 1 . Recycling Units 2 | . 2 . Scanalyzers . | . . . Garrison Access . | . . . Total Hacks 28 | . 28 . Successful 13 | . 13 . Failed 15 | . 15 . Catastrophic 1 | . 1 . Database Lockouts . | . . . Manual 7 | . 7 . Terminals 16 | . 16 . Fabricators . | . . . Repair Stations 8 | . 8 . Recycling Units 4 | . 4 . Scanalyzers . | . . . Garrison Access . | . . . Terminal Hacks 4 | . 4 . Prototype ID Bank 1 | . 1 . Locate Traps 1 | . 1 . Hauler Manifests 1 | . 1 . Registered Components 1 | . 1 . Fabricator Hacks . | . . . Repair Station Hacks 6 | . 6 . Scan Component 3 | . 3 . Repair 3 | . 3 . Recycling Unit Hacks 3 | . 3 . Report Inventory 2 | . 2 . Retrieve Components 1 | . 1 . Scanalyzer . | . . . Garrison Access Hacks . | . . . Unauthorized Hacks . | . . . Terminals . | . . . Fabricators . | . . . Repair Stations . | . . . Recycling Units . | . . . Scanalyzers . | . . . Garrison Access . | . . . Data Cores Recovered . | . . . Used . | . . . Hacking Detections 7 | . 7 . Full Trace Events 2 | . 2 . Feedback Events . | . . . Feedback Blocked . | . . . Robot Schematics Acquired . | . . . Robots Built . | . . . Authchips . | . . . Time . | . . . Total Robot Build Rating . | . . . Part Schematics Acquired . | . . . Parts Built . | . . . Authchips . | . . . Time . | . . . Total Part Build Rating . | . . . Part Studies Acquired . | . . . Parts Repaired 3 | . 3 . Time 78 | . 78 . Parts Recycled . | . . . Recycled Matter . | . . . Retrieved Matter . | . . . Retrieved Components 2 | . 2 . Parts Scanalyzed . | . . . Part Schematics Acquired . | . . . Parts Damaged . | . . . Bothacking | -11 -10 -10 ------------ Run | Yrd Mat Sub Used RIF Installer . | . . . Robots Hacked . | . . . Non-combat . | . . . Combat . | . . . Robot Hacks Applied . | . . . Relay Couplers Released . | . . . Fabnet Peak Effective % . | . . . Robots Rewired . | . . . Allies Hacked . | . . . Hacks Repelled . | . . . Allies | -11 -10 -10 -------- Run | Yrd Mat Sub Total Allies . | . . . Largest Group . | . . . Highest-Rated Group . | . . . Highest-Rated Ally . | . . . Total Orders . | . . . Ally Attacks . | . . . Total Damage . | . . . Kills . | . . . Allies Corrupted . | . . . Allies Melted . | . . . Intel | -11 -10 -10 ------- Run | Yrd Mat Sub Active Infowar (turns) 52 | . 52 . Terrain 52 | . 52 . Robot Analysis Total . | . . . Derelict Logs Recovered . | . . . Drone Launches . | . . . Drone Recoveries . | . . . Exploration | -11 -10 -10 ------------- Run | Yrd Mat Sub Turns Passed 1727 | 66 1425 236 Spaces Moved 775 | 36 649 90 Core 2 | 2 . . Treads 773 | 34 649 90 Legs . | . . . Wheels . | . . . Hover . | . . . Flight . | . . . Fastest Speed 50 | 50 160 160 Average Speed 159 | 153 160 160 Slowest Speed 160 | 160 160 160 Overloaded Moves . | . . . Propulsion Burnouts . | . . . Robots Hopped . | . . . Potential Cave-ins . | . . . Cave-ins Triggered . | . . . Exploration Rate (%) 34 | 4 95 5 Regions Visited 2 Branch Regions 1 Pre-discovered Areas . | . . . Known Exits Taken 1 | . 1 . Unknown Exits Taken 1 | 1 . . Scrap Searched . | . . . Spaces Dug 2 | . 2 . Terrain Destroyed 7 | . 4 3 Melee 2 | . 2 . Projectile . | . . . AOE 5 | . 2 3 Terrain Rammed . | . . . Walls Destroyed . | . . . Machines Disabled . | . . . Actions | -11 -10 -10 --------- Run | Yrd Mat Sub Total 1099 | 44 926 129 Wait 169 | . 165 4 Move 773 | 35 648 90 Hop . | . . . Pick Up 24 | 4 20 . Fast Attach 9 | 5 4 . Attach 3 | . 1 2 Detach . | . . . Swap 17 | . 12 5 Drop 15 | . 15 . Fire 85 | . 57 28 Melee 4 | . 4 . Ram . | . . . Kick . | . . . Crush . | . . . Escape Stasis . | . . . Rewire . | . . . Trap . | . . . Miscellaneous . | . . . Route ------- -11/Scrapyard -10/Materials (discovered 6 exits: *Mat x3 / [*Min x2] / *Sub) -10/Subcaves (discovered 1 exit: *Rec) History --------- Turn | Location | Event 10 | -11/Scrapyard | Discovered new exit (range 15) 67 | -11/Scrapyard | Entered Materials 305 | -10/Materials | Build established: Mutant 505 | -10/Materials | Discovered new exit (range 11) 647 | -10/Materials | Discovered new exit (range 8) 700 | -10/Materials | Discovered new exit (range 8) 976 | -10/Materials | Discovered new exit (range 9) 1003 | -10/Materials | Identified exit to Subcaves 1117 | -10/Materials | Discovered new exit (range 10) 1149 | -10/Materials | Identified exit to Materials 1245 | -10/Materials | Discovered exit to Materials (range 4) 1350 | -10/Materials | Repaired Assault Rifle 1378 | -10/Materials | Repaired Assault Rifle 1405 | -10/Materials | Repaired Lgt. Treads 1492 | -10/Materials | Entered Subcaves 1493 | -10/Subcaves | Approached by a straggling Scientist 1601 | -10/Subcaves | Discovered new exit (range 10) 1615 | -10/Subcaves | Core integrity fell below 50% 1635 | -10/Subcaves | Identified exit to Recycling 1719 | -10/Subcaves | Core integrity fell below 20% 1728 | -10/Subcaves | Destroyed by 59-585(R) with Subdweller Beam Cannon Last Messages --------------- 01604_ Acquired 54 matter. 01606_ Subatomizers dissect the Sub. Optics. 01608_ Acquired 31 matter. 01609_ Machine disabled. 01618_ Subatomizers dissect the Sub. Optics. 01624_ Autobeam Turret destroyed. 01630_ Acquired 20 matter. 01631_ CL-4GM(z): "She is not going to be happy we haven't found any suitable candidates yet." 01632_ Acquired 25 matter. 01635_ EXIT=IDENTIFIED: RECYCLING AB-22Q(c): "I think it's somewhere west of here" 01646_ Subatomizers dissect the Ion Engine. AB-22Q(c): "I think it's somewhere west of here" 01700_ Mni. Grenade Launcher destroyed. 01708_ AB-22Q(c) destroyed. 01714_ Assault Rifle destroyed. 01724_ Discarded Signal Interpreter. 01726_ Lgt. Treads destroyed. 01726_ Critical hit (Meltdown: +280). Map ----- +----------------------------------------------------+ | ?????????????????????????????????????????????????? | | ?????????????????????????????????????????????????? | | ?????????????????????????????????????????????????? | | ?????????????????????????????????????????????????? | | ?????????????????????????????????????????????????? | | ?????????????????????????????????????????????????? | | ?????????????????????????????????????????????????? | | ?????????????????????????????????????????????????? | | ?????????????????????????????????????????????????? | | ?????????????????????????????????????????????????? | | ?????????????????????????????????????????????????? | | ???????????????#?????????????????????????????????? | | ??????????????? ?????????????????????????????????? | | ??????????????? ? ???????????????????????????????? | | ?????????????? ""#??????????????????????????????? | | ????????????? " #??????????????????????????????? | | ??????????#?? #??????????????????????????????? | | ??????????# #??#######?????????????????????? | | ?????????? " #### #?????????????????????? | | ??????????#" % #?????????????????????? | | ??????????# " / #?????????????????????? | | ???????????????# "# =#?????????????????????? | | ???????????????# #####RR#?????????????????????? | | ???????????????# ????## *#?????????????????????? | | ???????????????# "###### ##?????????????????????? | | ####???????????# " # # @#??????????????????????? | | ############# #??????????????????????? | | ## # # ##; #?????????????????????? | | ###### #?????????????????????? | | ## ### ## #???# ##?????????????????????? | | ### ##?########?##???# #??????????????????????? | | #?## ##########???????####??????????????????????? | | ???# !##" """#?????????????????????????????????? | | ???# * ## "#?????????????????????????????????? | | ???###&=# #?????????????????????????????????? | | ?????#%& ""##????????????????????????????????? | | ?????#! >#????????????????????????????????? | | ?????## % ""##????????????????????????????????? | | ??????###% "#?????????????????????????????????? | | ????????# "#?????????????????????????????????? | | ????????#" ""#?????????????????????????????????? | | ????????########?????????????????????????????????? | | ?????????????????????????????????????????????????? | | ?????????????????????????????????????????????????? | | ?????????????????????????????????????????????????? | | ?????????????????????????????????????????????????? | | ?????????????????????????????????????????????????? | | ?????????????????????????????????????????????????? | | ?????????????????????????????????????????????????? | | ?????????????????????????????????????????????????? | +----------------------------------------------------+ Best States ------------- Heat Dissipation 25 Energy Generation 15 Energy Capacity 250 Matter Stores 300 Matter Capacity 300 Sight Range 16 Terrain Scan Range 14 Terrain Scan Density 10 Armor Coverage 150 Evasion (%) 40 Recoil Reduction 2 Authchip Count 1 Item Schematics ----------------- None Robot Schematics ------------------ None Fabricated ------------ Nothing Repaired ---------- Assault Rifle | 48% | -10/Materials Assault Rifle | 70% | -10/Materials Lgt. Treads | 62% | -10/Materials Studied --------- None Alien Tech Used ----------------- None Achievements -------------- None Challenges ------------ None Game ------ Seed FissionSigixLink Manual? 0 Play Time 00:21:43 Cumulative 15.5 hours Start 2025.12.30 @ 15:28:13 End 2025.12.30 @ 15:54:31 Sessions 1 Manual Loads 0 Difficulty Rogue Special Mode None Game No. 14 Rogue 14 Adventurer 0 Explorer 0 Win Type - Total 0 Types 0/0/0/0/0/0/0/0/0/0 Lore% 8 Gallery% 17 Achievement% 15 Wizard Run 0 Options --------- Layout 1 ASCII 0 Keyboard 0 Movement Numpad Keybinds 0 Fullscreen 1 Font 24/Smallcaps Map View 50x40 Zoom Use 0% Tactical HUD 1 Map Filters NONE Filters NONE Steam 1 RUN: e5ee28c0-df53-4646-ad72-6015d5385820